Cogmind - Beta 14 @@@ ROGUE MODE // 2024.10.12 @ 13:53:19 Player: laeb2 Result: Destroyed by US-QYC(R) with Subdweller Beam Cannon Performance ------------- Evolutions (0) 0 Regions Visited (2) 400 Robots Destroyed (18) 90 Value Destroyed (411) 411 Prototype IDs (0) 0 Alien Tech Used (0) 0 Bonus (0) 0 TOTAL SCORE: 901 Bonus ------- None Cogmind --------- Core Integrity 0/250 Matter 295/300 Energy 125/125 System Corruption 0% Temperature Cool (84) Movement Walking (120) Location -10/Subcaves Parts ------- > --- POWER (1) -------- Light Ion Engine > --- PROPULSION (2) --- Aluminum Leg > --- UTILITY (2) ------ Hacking Suite > --- WEAPON (2) ------- Barrage Gun > --- INVENTORY (5) ---- Light Ion Engine Heat Sink Subdweller Shrapnel Launcher Datajack Peak State ------------ > --- POWER ------------ Light Ion Engine > --- PROPULSION ------- Aluminum Leg Aluminum Leg > --- UTILITY ---------- Improved Terrain Scanner Hacking Suite > --- WEAPON ----------- Medium Laser Subdweller Machine Gun > --- INVENTORY -------- Light Ion Engine Heat Sink Medium Laser Light Assault Rifle Datajack [Rating: 12] Favorites ----------- Power Ion Engine Engine Ion Engine Propulsion Aluminum Leg Leg Aluminum Leg Utility Small Storage Unit Device Improved Terrain Scanner Storage Small Storage Unit Hackware Hacking Suite Weapon Medium Laser Energy Gun Medium Laser Ballistic Gun Assault Rifle Launcher Subdweller Shrapnel Launcher Build | -11 -10 -10 ------- Run | Yrd Mat Sub Slots Evolved . | . . . Power . | . . . Propulsion . | . . . Utility . | . . . Weapon . | . . . Parts Attached 16 | 6 3 7 Power 2 | 1 1 . Engine 2 | 1 1 . Core . | . . . Reactor . | . . . Propulsion 4 | 2 . 2 Treads . | . . . Leg 4 | 2 . 2 Wheel . | . . . Hover . | . . . Flight . | . . . Utility 3 | 1 1 1 Device 1 | . . 1 Storage 1 | 1 . . Processor . | . . . Hackware 1 | . 1 . Protection . | . . . Artifact . | . . . Weapon 7 | 2 1 4 Energy Gun 3 | 1 1 1 Energy Cannon . | . . . Ballistic Gun 3 | 1 . 2 Ballistic Cannon . | . . . Launcher 1 | . . 1 Special Weapon . | . . . Impact Weapon . | . . . Slashing Weapon . | . . . Piercing Weapon . | . . . Special Melee Weapon . | . . . Unidentified Prototypes . | . . . Parts Lost 4 | . . 4 Power . | . . . Propulsion 1 | . . 1 Utility 1 | . . 1 Weapon 2 | . . 2 Highest Loss Streak 4 | . . 4 To Critical Strikes . | . . . Average Slot Usage (%) 94 | . 93 96 Engine 13 | . 12 14 Leg 27 | . 28 27 Device 3 | . . 13 Storage 10 | . 14 . Hackware 10 | . 8 14 Energy Gun 17 | . 17 15 Ballistic Gun 8 | . 10 3 Launcher 1 | . . 7 Peak Build Rating 12 | 6 10 12 Average Rating 8 | 5 7 11 On Entrance 5 | . 6 10 Naked Turns . | . . . Heaviest Build 14 | 14 14 14 Greatest Support 20 | 20 20 20 Greatest Overweight (x) . | . . . Average Overweight (x) . | . . . Largest Inventory Capacity 8 | 8 8 8 Average Capacity 7 | 7 8 5 Most Carried 8 | 5 8 8 Average Carried 3 | 2 3 4 Final Capacity 8 | 8 8 5 Final Carried 8 | 3 8 4 Class Distribution -------------------- 96% | Mutant 3% | Scavenger-Mutant Dominant Class ---------------- Mutant | -10/Materials Mutant | -10/Subcaves Resources | -11 -10 -10 ----------- Run | Yrd Mat Sub Matter Collected 486 | 240 129 117 Remotely . | . . . Salvage Created 545 | 85 406 54 Parts 36 | 11 24 1 Haulers Intercepted . | . . . Recyclers Shooed . | . . . Parts Field Recycled . | . . . Retrieved Matter . | . . . Parts Self-Destructed 5 | . . 5 Prevented . | . . . Kills | -11 -10 -10 ------- Run | Yrd Mat Sub Combat Hostiles Destroyed 13 | . 11 2 Guns 11 | . 10 1 AOE 1 | . . 1 Classes Destroyed 7 | 2 5 . Builder 1 | . 1 . Tunneler 2 | 2 . . Recycler 1 | 1 . . Operator 1 | . 1 . Swarmer 4 | . 3 1 Grunt 5 | . 5 . Subdweller 4 | . 3 1 Best Kill Streak 4 | 2 4 1 Combat Bots Only 3 | . 3 1 Max Kills in Single Turn 1 | 1 1 1 Gunslinging . | . . . Exploded 1 | . . 1 Melee . | . . . Uniques/NPCs Destroyed . | . . . Combat | -11 -10 -10 -------- Run | Yrd Mat Sub Hostile Shots Fired 72 | . 51 21 Missed 21 | . 14 7 Damage Taken 779 | . 422 357 Core 271 | . 115 156 Absorbed by Shields . | . . . Core Remaining (%) 100 | 100 . . Volleys Fired 68 | 10 39 19 Largest 2 | 2 2 2 Hottest 100 | 70 100 100 Shots Fired 121 | 20 78 23 Gun 120 | 20 78 22 Cannon . | . . . Launcher 1 | . . 1 Special . | . . . Kinetic 44 | 10 21 13 Thermal 77 | 10 57 10 Explosive . | . . . Electromagnetic . | . . . Robot Hit Streak 10 | 9 10 8 Robot Miss Streak 4 | 2 4 2 Penetration Max . | . . . Secondary Targets . | . . . Shots Hit Robots 80 | 15 50 15 Core Hits 31 | 4 23 4 Critical Kills . | . . . Critical Parts Destroyed . | . . . Critical Strikes 7 | 1 3 3 Burn 6 | 1 3 2 Destroy 1 | . . 1 Melee Attacks . | . . . Impact . | . . . Slashing . | . . . Piercing . | . . . Sneak Attacks . | . . . Combat Hostiles . | . . . Follow-up Attacks . | . . . Damage Inflicted 1152 | 189 630 333 Guns 1053 | 189 627 237 Cannons . | . . . Explosions 96 | . . 96 Melee . | . . . Ramming 3 | . 3 . Kinetic 487 | 102 138 247 Thermal 662 | 87 489 86 Explosive . | . . . Electromagnetic . | . . . Impact . | . . . Slashing . | . . . Piercing . | . . . Highest Corruption . | . . . Average Corruption . | . . . Corruption Purged . | . . . Corruption Blocked . | . . . Overload Shots . | . . . Overflow Damage . | . . . Projectiles . | . . . Explosions . | . . . Melee . | . . . Knockbacks . | . . . Impact . | . . . Kinetic . | . . . Secondary . | . . . Self-Inflicted Damage . | . . . Shots . | . . . Rammed . | . . . Targets Rammed 1 | . 1 . Kicked 1 | . 1 . Crushed . | . . . Highest Temperature 375 | 36 375 239 Average Temperature 86 | 14 98 131 Received Heat Transfer 471 | . 84 387 Effects 2 | . 2 . Short Circuit 1 | . 1 . Damage (minor) 1 | . 1 . Siege Activations . | . . . Robots Corrupted . | . . . Combat Hostiles . | . . . Parts Fried . | . . . Impact Corruptions . | . . . Robots Melted 1 | . 1 . Combat Hostiles 1 | . 1 . Parts Melted 8 | . 8 . Heat Transferred 2405 | 333 1665 407 Parts Sabotaged . | . . . Parts Stolen . | . . . Parts Stripped . | . . . Power Chain Reactions . | . . . Alert | -11 -10 -10 ------- Run | Yrd Mat Sub Peak Influence 182 | 15 182 . Initial 9 | . 9 . Average 60 | 5 69 . Maximum Alert Level . | . . . Low Security (%) 100 | 100 100 . Level 1 . | . . . Level 2 . | . . . Level 3 . | . . . Level 4 . | . . . Level 5 . | . . . High Security . | . . . Max Security . | . . . Squads Dispatched 3 | . 3 . Investigation 1 | . 1 . Extermination . | . . . Reinforcement 2 | . 2 . Assault . | . . . Garrison . | . . . Intercept . | . . . Searches Triggered . | . . . Construction Impeded . | . . . Haulers Reinforced . | . . . Active Scanning Responses . | . . . Cargo Convoy Interrupts . | . . . Stealth | -11 -10 -10 --------- Run | Yrd Mat Sub Distress Signals . | . . . Communications Jammed . | . . . Distress Signals . | . . . Times Spotted 18 | . 14 4 Peak Tracking Total 4 | . 4 2 Tactical Retreats 1 | . 1 . Traps | -11 -10 -10 ------- Run | Yrd Mat Sub Traps Triggered . | . . . Indirectly . | . . . Trap Hack Attempts . | . . . Triggered . | . . . Disarmed . | . . . Reprogrammed . | . . . Reused . | . . . Traps Extracted . | . . . Installed . | . . . Triggered . | . . . Machines | -11 -10 -10 ---------- Run | Yrd Mat Sub Machines Disabled . | . . . Max in Single Turn . | . . . Machines Repaired . | . . . Machines Dismantled . | . . . Machines Sabotaged . | . . . Overloaded Fab Kills . | . . . Hacking | -11 -10 -10 --------- Run | Yrd Mat Sub Machines Accessed 2 | . 2 . Terminals 1 | . 1 . Fabricators . | . . . Repair Stations . | . . . Recycling Units 1 | . 1 . Scanalyzers . | . . . Garrison Access . | . . . Total Hacks 4 | . 4 . Successful 2 | . 2 . Failed 2 | . 2 . Catastrophic . | . . . Database Lockouts . | . . . Manual 3 | . 3 . Terminals 2 | . 2 . Fabricators . | . . . Repair Stations . | . . . Recycling Units 2 | . 2 . Scanalyzers . | . . . Garrison Access . | . . . Terminal Hacks . | . . . Fabricator Hacks . | . . . Repair Station Hacks . | . . . Recycling Unit Hacks 1 | . 1 . Report Inventory 1 | . 1 . Scanalyzer . | . . . Garrison Access Hacks . | . . . Unauthorized Hacks 1 | . 1 . Terminals . | . . . Fabricators . | . . . Repair Stations . | . . . Recycling Units 1 | . 1 . Tunnel 1 | . 1 . Scanalyzers . | . . . Garrison Access . | . . . Data Cores Recovered . | . . . Used . | . . . Hacking Detections 1 | . 1 . Full Trace Events . | . . . Feedback Events . | . . . Feedback Blocked . | . . . Robot Schematics Acquired . | . . . Robots Built . | . . . Authchips . | . . . Time . | . . . Total Robot Build Rating . | . . . Part Schematics Acquired . | . . . Parts Built . | . . . Authchips . | . . . Time . | . . . Total Part Build Rating . | . . . Parts Repaired . | . . . Time . | . . . Parts Recycled . | . . . Recycled Matter . | . . . Retrieved Matter . | . . . Retrieved Components . | . . . Parts Scanalyzed . | . . . Part Schematics Acquired . | . . . Parts Damaged . | . . . Bothacking | -11 -10 -10 ------------ Run | Yrd Mat Sub Used RIF Installer . | . . . Robots Hacked . | . . . Non-combat . | . . . Combat . | . . . Robot Hacks Applied . | . . . Relay Couplers Released . | . . . Fabnet Peak Effective % . | . . . Robots Rewired . | . . . Allies Hacked . | . . . Hacks Repelled . | . . . Allies | -11 -10 -10 -------- Run | Yrd Mat Sub Total Allies . | . . . Largest Group . | . . . Highest-Rated Group . | . . . Highest-Rated Ally . | . . . Total Orders . | . . . Ally Attacks . | . . . Total Damage . | . . . Kills . | . . . Allies Corrupted . | . . . Allies Melted . | . . . Intel | -11 -10 -10 ------- Run | Yrd Mat Sub Robot Analysis Total . | . . . Derelict Logs Recovered 1 | . . 1 Drone Launches . | . . . Drone Recoveries . | . . . Exploration | -11 -10 -10 ------------- Run | Yrd Mat Sub Turns Passed 1093 | 126 733 234 Spaces Moved 364 | 75 177 112 Core 13 | 13 . . Treads . | . . . Legs 351 | 62 177 112 Wheels . | . . . Hover . | . . . Flight . | . . . Fastest Speed 50 | 50 120 120 Average Speed 117 | 107 120 120 Slowest Speed 120 | 120 120 120 Overloaded Moves . | . . . Propulsion Burnouts . | . . . Robots Hopped . | . . . Cave-ins Triggered . | . . . Exploration Rate (%) 10 | 5 16 10 Regions Visited 2 Branch Regions 1 Pre-discovered Areas 3 | . 1 2 Known Exits Taken . | . . . Unknown Exits Taken 2 | 1 1 . Scrap Searched 4 | . . 4 Spaces Dug . | . . . Terrain Destroyed 15 | . . 15 Melee . | . . . Projectile . | . . . AOE 15 | . . 15 Terrain Rammed . | . . . Walls Destroyed . | . . . Machines Disabled . | . . . Actions | -11 -10 -10 --------- Run | Yrd Mat Sub Total 909 | 100 620 189 Wait 437 | 1 392 44 Move 362 | 74 176 112 Hop . | . . . Pick Up 18 | 9 7 2 Fast Attach 2 | . 1 1 Attach 9 | 6 2 1 Detach . | . . . Swap 5 | . . 5 Drop 7 | . 2 5 Fire 68 | 10 39 19 Melee . | . . . Ram . | . . . Kick 1 | . 1 . Crush . | . . . Escape Stasis . | . . . Rewire . | . . . Trap . | . . . Miscellaneous . | . . . Route ------- -11/Scrapyard -10/Materials (discovered 2 exits: [*Min] / [*Sub]) -10/Subcaves History --------- Turn | Location | Event 5 | -11/Scrapyard | Discovered new exit (range 15) 127 | -11/Scrapyard | Entered Materials 318 | -10/Materials | Build established: Mutant 407 | -10/Materials | Discovered new exit (range 14) 565 | -10/Materials | Discovered new exit (range 8) 727 | -10/Materials | Derelicts attacked the area 860 | -10/Materials | Entered Subcaves 880 | -10/Subcaves | Learned location of Zion (-6) 880 | -10/Subcaves | Met a Zionite searching for "candidates" 894 | -10/Subcaves | Learned location of Storage (-9) 1039 | -10/Subcaves | Core integrity fell below 50% 1090 | -10/Subcaves | Core integrity fell below 20% 1094 | -10/Subcaves | Destroyed by US-QYC(R) with Subdweller Beam Cannon Last Messages --------------- Found Barrage Gun. Found 46 Matter. Searching scrap... Found Scrap Shield. Found 42 Matter. Dropped Lgt. Assault Rifle. Acquired Barrage Gun. Dropped Sub. Machine Gun. Acquired Sub. Shrapnel Launcher. Acquired 10 matter. S-10 Pest destroyed. OT-J8Z(R): "ARGHSUB!" OT-J8Z(R) suffers critical hit (Burn). Med. Laser destroyed. OT-J8Z(R) suffers critical hit (Destroy). Aluminum Leg destroyed. Imp. Terrain Scanner destroyed. Critical hit (Meltdown: +270). OT-J8Z(R) destroyed. Acquired 51 matter. Map ----- +----------------------------------------------------+ | ????????????## ## ######???????#??????????????? | | ???????#????# # #???#??????#????????????????? | | ????????????## ## #???????????????????????????? | | ????????????# # ##??????#????????????????????? | | ????????????## ###???#??????????????????????? | | ???????????### #?#?????????????????????????? | | ???????????# #????????#??????????????????? | | ????????#??# #???????????????????????????? | | ???????????## ##??????????????????????????? | | ????????????## ###????????????????????????? | | ?????????????# ##???#????????????????????? | | ??????????##?# ##???????????????????????? | | ?????????## ## #??#???#?????????????????? | | ?????#???# ##???????????????????????? | | ??#??????## ###????????????????????????? | | ??????????# ##????#???#????????????????? | | ?????????## ###?????#?????????????????? | | ????????## #### ##??????????????????????? | | ????????# #???# ##?????????????????????? | | ????????### ##### ###????#??";??????????? | | ??????????## ## #### ##; ????????? | | ???????????## ???????? | | ????????????## % ???????? | | ?????????????# R ;; ?????????? | | ????????????## #????????????? | | ????????????## &@* ## #????????????? | | ??????????#?# ## ## &;;##??? #????????????? | | ????????????# ## ## ###?##????#????????????? | | ????????????# ### ##??#?????? ???#????????? | | ?#?????????### #?#####??????? ??#??????????? | | ?????????????## #??##????#??????????????????? | | ??????????????###### #??#????????????????????????? | | ??????#???#????????###?????????????? ? ??????????? | | ???????????#??????#????????? ???????#????????????? | | ????????????#?????#????????? ?? ?????????????????? | | ???????????????????????????? ????????????????????? | | ???????????????????????????? ????????????????????? | | ???#???????????#???????????????????? ????????????? | | ???????#????????##????????????????#??????????????? | | ???????????????????????????????????#?????????????? | | ??????????????????????"????#?????????????????????? | | ?????????????????????"??? ???????????????????????? | | ?????????????????????????????????????????????????? | | ???????????????????? ????????????????????????????? | | ?????????????????????????????????????????????????? | | ?????????????????????????????????????????????????? | | ?????????????????????????????????????????????????? | | ?????????????????????????????????????????????????? | | ?????????????????????????????????????????????????? | | ?????????????????????????????????????????????????? | +----------------------------------------------------+ Best States ------------- Heat Dissipation 25 Energy Generation 10 Energy Capacity 250 Matter Stores 300 Matter Capacity 300 Sight Range 16 Terrain Scan Range 16 Terrain Scan Density 10 Evasion (%) 55 Offensive Hacking 10 Item Schematics ----------------- None Robot Schematics ------------------ None Fabricated ------------ Nothing Alien Tech Used ----------------- None Achievements -------------- None Challenges ------------ None Game ------ Seed WeightPoweredWeb Manual? 0 Play Time 00:08:56 Cumulative 45.9 hours Start 2024.10.12 @ 13:46:19 End 2024.10.12 @ 13:53:19 Sessions 1 Manual Loads 0 Difficulty Rogue Special Mode None Game No. 62 Rogue 62 Adventurer 0 Explorer 0 Win Type - Total 1 Types 1/0/0/0/0/0/0/0/0 Lore% 34 Gallery% 40 Achievement% 38 Wizard Run 0 Options --------- Layout 1 ASCII 0 Keyboard 0 Movement Mouse Keybinds 0 Fullscreen 1 Font 32/SmallcapsGlow Map View 50x35 Zoom Use 0% Tactical HUD 0 Map Filters NONE Filters NONE Steam 1 RUN: a84c8752-f3fa-4a03-8cd0-d756550996b5